fUSD/lending_fUSD_20250526
["ID","MTS","AMOUNT","RATE_DAILY","PERIOD"]
[362411062,1748257820226,-493.562165,0.00019178,2]
[362411063,1748257820250,-493.562165,0.00019178,2]
[362411064,1748257820272,-154.601241,0.00019178,2]
[362411065,1748257820295,-163.698043,0.00019178,2]
[362411066,1748257820319,-176.221143,0.00019178,2]
[362411067,1748257820343,-171.811109,0.00019178,2]
[362411068,1748257820366,-285.581309,0.00019178,2]
[362411069,1748257820388,-285.581309,0.00019178,2]
[362411070,1748257820411,-285.581309,0.00019178,2]
[362411071,1748257820434,-435.957839,0.00019178,2]
[362411072,1748257820457,-435.957839,0.00019178,2]
[362411073,1748257820481,-435.957839,0.00019178,2]
[362411074,1748257820503,-575.33466,0.00019178,2]
[362411075,1748257820526,-575.33466,0.00019178,2]
[362411076,1748257820549,-575.33466,0.00019178,2]
[362411077,1748257820571,-743.463568,0.00019178,2]
[362411078,1748257820594,-743.463568,0.00019178,2]
[362411079,1748257820618,-743.463568,0.00019178,2]
[362411080,1748257820641,-151.094754,0.00019178,2]
[362411081,1748257820664,-866.751394,0.00019178,2]
[362411082,1748257820691,-866.751394,0.00019178,2]
[362411083,1748257820713,-178.91671275,0.00019178,2]
[362411084,1748257822179,-687.83468125,0.00019178,2]
[362411085,1748257822205,-689.351603,0.00019178,2]
[362411086,1748257822232,-689.351603,0.00019178,2]
[362411087,1748257822258,-689.351603,0.00019178,2]
[362411088,1748257822283,-497.634992,0.00019178,2]
[362411089,1748257822308,-167.899136,0.00019178,2]
[362411090,1748257822332,-497.634992,0.00019178,2]
[362411091,1748257822355,-497.634992,0.00019178,2]
[362411092,1748257822378,-377.024195,0.00019178,2]
[362411093,1748257822403,-377.024195,0.00019178,2]
[362411094,1748257822426,-377.024195,0.00019178,2]
[362411095,1748257822451,-878.742809,0.00019178,2]
[362411096,1748257822474,-878.742809,0.00019178,2]
[362411097,1748257822496,-878.742809,0.00019178,2]
[362411098,1748257822519,-151.930503,0.00019178,2]
[362411099,1748257822544,-158.127838,0.00019178,2]
[362411100,1748257822568,-158.127838,0.00019178,2]
[362411101,1748257822591,-174.79,0.00019178,2]
[362411102,1748257822613,-1000.0,0.00019221,2]
[362411103,1748257822635,-173.02920675,0.00019221,2]
[362411104,1748257822838,-816.46911284,0.00019221,2]
[362411105,1748257822863,-1000.0,0.00019221,2]
[362411106,1748257822887,-561.26141786,0.00019221,2]
[362411107,1748257822910,-497.67821093,0.00019221,2]
[362411108,1748257822933,-1000.0,0.00019221,2]
[362411109,1748257822956,-1000.0,0.00019221,2]
[362411110,1748257822979,-1000.0,0.00019221,2]
[362411111,1748257823001,-1000.0,0.00019221,2]
[362411112,1748257823023,-1000.0,0.00019221,2]
[362411113,1748257823047,-493.562165,0.00019369,2]
[362411114,1748257823074,-285.581309,0.00019369,2]
[362411115,1748257823097,-435.957839,0.00019369,2]
[362411116,1748257823121,-575.33466,0.00019369,2]
[362411117,1748257823145,-334.15528537,0.00019369,2]
[362411118,1748257823458,-409.30828263,0.00019369,2]
[362411119,1748257823487,-866.751394,0.00019369,2]
[362411120,1748257823512,-689.351603,0.00019369,2]
[362411121,1748257823536,-497.634992,0.00019369,2]
[362411122,1748257823561,-377.024195,0.00019369,2]
[362411123,1748257823585,-878.742809,0.00019369,2]
[362411124,1748257823613,-1000.0,0.00019438,2]
[362411125,1748257823636,-954.86845752,0.00019468,2]
[362411126,1748257823661,-493.562165,0.00019726,2]
[362411127,1748257823690,-493.562165,0.00019726,2]
[362411128,1748257823715,-285.581309,0.00019726,2]
[362411129,1748257823740,-285.581309,0.00019726,2]
[362411130,1748257823765,-435.957839,0.00019726,2]
[362411131,1748257823788,-435.957839,0.00019726,2]
[362411132,1748257823812,-575.33466,0.00019726,2]
[362411133,1748257823837,-575.33466,0.00019726,2]
[362411134,1748257824011,-743.463568,0.00019726,2]
[362411135,1748257824037,-1.98275285,0.00019726,2]
[362411136,1748257824558,-741.48081515,0.00019726,2]
[362411137,1748257824582,-866.751394,0.00019726,2]
[362411138,1748257824607,-866.751394,0.00019726,2]
[362411139,1748257824632,-689.351603,0.00019726,2]
[362411140,1748257824658,-689.351603,0.00019726,2]
[362411141,1748257824685,-497.634992,0.00019726,2]
[362411142,1748257824711,-497.634992,0.00019726,2]
[362411143,1748257824738,-377.024195,0.00019726,2]
[362411144,1748257824763,-377.024195,0.00019726,2]
[362411145,1748257824788,-878.742809,0.00019726,2]
[362411146,1748257824813,-878.742809,0.00019726,2]
[362411147,1748257824836,-158.127838,0.00019726,2]
[362411148,1748257824860,-2219.1450606,0.0001975,2]
[362411149,1748257824884,-178.47203628,0.0001975,2]
[362411150,1748257824908,-83.76426397,0.00019768,2]
[362411151,1748257824955,-932.50157078,0.00019768,2]
[362411152,1748257824977,-929.08425566,0.00019768,2]
[362411153,1748257825000,-1500.0,0.00019768,2]
[362411154,1748257825023,-1500.0,0.00019768,2]
[362411155,1748257825045,-1507.0440871,0.00019768,2]
[362411156,1748257825067,-1505.62472239,0.00019768,2]
[362411157,1748257825090,-1500.0,0.00019768,2]
[362411158,1748257825112,-625.74536407,0.00019795,2]
[362411159,1748257825730,-10000.0,0.00019795,2]
[362411160,1748257826752,-10000.0,0.00019795,2]
[362411161,1748257828447,-647.24902,0.00019178,2]
[362411162,1748257828637,-9352.75098,0.00019795,2]
[362411163,1748257829499,-647.24902,0.00019178,2]
[362411164,1748257829524,-647.24902,0.00019178,2]
[362411165,1748257829550,-647.24902,0.00019369,2]
[362411166,1748257829574,-8058.25294,0.00019795,2]
[362411174,1748257832323,-647.24902,0.00019726,2]
[362411175,1748257832333,-647.24902,0.00019726,2]
[362411176,1748257832343,-33819.9064561,0.00019795,2]
[362411177,1748257832354,-1722.8,0.00019795,2]
[362411178,1748257832366,-450.64156541,0.00019795,2]
[362411179,1748257832480,-90194.40008395,0.00019795,2]
[362411180,1748257832492,-29148.34069234,0.00019795,2]
[362411181,1748257832502,-200.0,0.00019871,2]
[362411182,1748257832512,-250.0,0.00019871,2]
[362411184,1748257832522,-200.0,0.00019871,2]
[362411185,1748257832532,-493.562165,0.00019899,2]
[362411186,1748257832542,-493.562165,0.00019899,2]
[362411187,1748257832552,-493.562165,0.00019899,2]
[362411189,1748257832561,-163.698043,0.00019899,2]
[362411191,1748257832570,-285.581309,0.00019899,2]
[362411192,1748257832579,-285.581309,0.00019899,2]
[362411194,1748257832588,-285.581309,0.00019899,2]
[362411195,1748257832597,-435.957839,0.00019899,2]
[362411197,1748257832607,-435.957839,0.00019899,2]
[362411199,1748257832616,-435.957839,0.00019899,2]
[362411201,1748257832625,-575.33466,0.00019899,2]
[362411203,1748257832635,-575.33466,0.00019899,2]
[362411205,1748257832644,-575.33466,0.00019899,2]
[362411207,1748257832653,-743.463568,0.00019899,2]
[362411209,1748257832662,-743.463568,0.00019899,2]
[362411210,1748257832671,-743.463568,0.00019899,2]
[362411212,1748257832684,-866.751394,0.00019899,2]
[362411214,1748257832695,-866.751394,0.00019899,2]
[362411216,1748257832705,-866.751394,0.00019899,2]
[362411218,1748257832715,-689.351603,0.00019899,2]
[362411220,1748257832724,-689.351603,0.00019899,2]
[362411222,1748257832734,-689.351603,0.00019899,2]
[362411224,1748257832744,-497.634992,0.00019899,2]
[362411226,1748257832753,-497.634992,0.00019899,2]
[362411228,1748257832763,-497.634992,0.00019899,2]
[362411230,1748257832773,-377.024195,0.00019899,2]
[362411232,1748257832782,-377.024195,0.00019899,2]
[362411234,1748257832792,-377.024195,0.00019899,2]
[362411236,1748257832802,-878.742809,0.00019899,2]
[362411238,1748257832812,-878.742809,0.00019899,2]
[362411240,1748257832821,-878.742809,0.00019899,2]
[362411242,1748257832831,-158.127838,0.00019899,2]
[362411244,1748257832840,-158.127838,0.00019899,2]
[362411245,1748257832849,-647.24902,0.00019899,2]
[362411247,1748257832859,-647.24902,0.00019899,2]
[362411249,1748257832868,-647.24902,0.00019899,2]
[362411251,1748257832878,-533.08429425,0.000199,2]
[362411253,1748257832888,-493.562165,0.00019921,2]
[362411255,1748257832899,-154.601241,0.00019921,2]
[362411257,1748257832908,-285.581309,0.00019921,2]
[362411259,1748257832917,-435.957839,0.00019921,2]
[362411261,1748257832927,-575.33466,0.00019921,2]
[362411263,1748257832936,-743.463568,0.00019921,2]
[362411264,1748257832945,-866.751394,0.00019921,2]
[362411266,1748257832955,-689.351603,0.00019921,2]
[362411268,1748257832964,-167.899136,0.00019921,2]
[362411270,1748257832972,-497.634992,0.00019921,2]
[362411272,1748257832981,-377.024195,0.00019921,2]
[362411274,1748257832990,-878.742809,0.00019921,2]
[362411276,1748257833001,-158.127838,0.00019921,2]
[362411278,1748257833011,-647.24902,0.00019921,2]
[362411280,1748257833021,-567.59511976,0.00019973,2]
[362411295,1748257833149,-500.0,0.00019973,2]
[362411298,1748257833188,-500.0,0.00019973,2]
[362411300,1748257833198,-500.0,0.00019973,2]
[362411301,1748257833207,-157.9124329,0.00019973,2]
[362411303,1748257833217,-500.0,0.00019973,2]
[362411305,1748257833227,-1000.0,0.00019976,2]
[362411307,1748257833237,-493.562165,0.00019989,2]
[362411309,1748257833247,-493.562165,0.00019992,2]
[362411311,1748257833257,-493.562165,0.00019992,2]
[362411313,1748257833267,-158.127838,0.00019992,2]
[362411314,1748257833277,-493.562165,0.00019993,2]
[362411315,1748257833287,-163.698043,0.00019993,2]
[362411316,1748257833297,-176.221143,0.00019993,2]
[362411317,1748257833307,-158.127838,0.00019993,2]
[362411318,1748257833318,-493.562165,0.00019994,2]
[362411319,1748257833329,-493.562165,0.00019994,2]
[362411320,1748257833339,-158.127838,0.00019994,2]
[362411321,1748257833349,-493.562165,0.00019997,2]
[362411322,1748257833361,-493.562165,0.00019998,2]
[362411323,1748257833371,-154.601241,0.00019998,2]
[362411324,1748257833381,-167.899136,0.00019998,2]
[362411325,1748257833390,-158.127838,0.00019998,2]
[362411326,1748257833401,-493.562165,0.00019999,2]
[362411327,1748257833410,-493.562165,0.00019999,2]
[362411328,1748257833420,-493.562165,0.00019999,2]
[362411329,1748257833431,-493.562165,0.00019999,2]
[362411330,1748257833441,-493.562165,0.00019999,2]
[362411331,1748257833451,-493.562165,0.00019999,2]
[362411332,1748257833460,-493.562165,0.00019999,2]
[362411333,1748257833470,-493.562165,0.00019999,2]
[362411334,1748257833481,-163.698043,0.00019999,2]
[362411335,1748257833491,-158.127838,0.00019999,2]
[362411336,1748257833502,-158.127838,0.00019999,2]
[362411338,1748257833513,-158.127838,0.00019999,2]
[362411340,1748257833524,-158.127838,0.00019999,2]
[362411342,1748257833534,-12500.0,0.0002,2]
[362411344,1748257833543,-12500.0,0.0002,2]
[362411346,1748257833553,-420.0,0.00020019,2]
[362411348,1748257833562,-266.5,0.000201,2]
[362411350,1748257833571,-1680.0,0.00020116,2]
[362411352,1748257833582,-218.99,0.00020187,2]
[362411354,1748257833591,-150.0,0.00020206,2]
[362411356,1748257833602,-711.61046766,0.00020316,2]
[362411358,1748257833612,-2000.0,0.00020316,2]
[362411360,1748257833622,-2000.0,0.00020316,2]
[362411362,1748257833632,-765.94,0.0002049,2]
[362411364,1748257833642,-511.45224705,0.00020521,2]
[362411366,1748257833652,-501.92609402,0.00020521,2]
[362411368,1748257833661,-1000.0,0.00020521,2]
[362411369,1748257833670,-1000.0,0.00020521,2]
[362411371,1748257833682,-203.55,0.00020548,2]
[362411373,1748257833692,-166.06,0.00020735,2]
[362411375,1748257833702,-240.08151178,0.00020864,2]
[362411377,1748257833712,-2500.0,0.00020864,2]
[362411379,1748257833723,-1000.0,0.00020986,2]
[362411381,1748257833733,-400.0,0.00021,2]
[362411383,1748257833743,-533.08429402,0.00021038,4]
[362411385,1748257833753,-515.36803309,0.00021068,2]
[362411387,1748257833765,-1501.2201206,0.00021068,2]
[362411389,1748257833775,-805.88,0.00021259,2]
[362411391,1748257833785,-3000.0,0.00021412,2]
[362411393,1748257833795,-150.0,0.00021576,2]
[362411396,1748257833805,-1500.0,0.00021644,2]
[362411398,1748257833816,-1000.0,0.00021773,2]
[362411399,1748257833826,-587.0,0.00021835,2]
[362411401,1748257833835,-500.0,0.00021918,2]
[362411403,1748257833845,-500.0,0.00021918,2]
[362411405,1748257833854,-500.0,0.00021918,2]
[362411407,1748257833864,-500.0,0.00021918,2]
[362411409,1748257833874,-500.0,0.00021918,2]
[362411411,1748257833883,-500.0,0.00021918,2]
[362411413,1748257833893,-500.0,0.00021918,2]
[362411415,1748257833903,-500.0,0.00021918,2]
[362411417,1748257833914,-500.0,0.00021918,2]
[362411419,1748257833925,-322.2430693,0.00021918,2]
[362411422,1748257833939,-177.7569307,0.00021918,2]
[362411424,1748257833949,-500.0,0.00021918,2]
[362411426,1748257833959,-500.0,0.00021918,2]
[362411428,1748257833968,-43.41886018,0.00021918,2]
[362411430,1748257833982,-456.58113982,0.00021918,2]
[362411432,1748257833991,-500.0,0.00021918,2]
[362411434,1748257834001,-500.0,0.00021918,2]
[362411436,1748257834011,-500.0,0.00021918,2]
[362411438,1748257834021,-500.0,0.00021918,2]
[362411440,1748257834031,-500.0,0.00021918,2]
[362411442,1748257834041,-500.0,0.00021918,2]
[362411444,1748257834051,-500.0,0.00021918,2]
[362411446,1748257834061,-500.0,0.00021918,2]
[362411448,1748257834071,-500.0,0.00021918,2]
[362411450,1748257834081,-500.0,0.00021918,2]
[362411451,1748257834090,-500.0,0.00021918,2]
[362411453,1748257834100,-500.0,0.00021918,2]
[362411455,1748257834110,-310.0765334,0.00021918,2]
[362411458,1748257834124,-3500.0,0.0002196,2]
[362411460,1748257834142,-8774.08697851,0.00022008,2]
[362411463,1748257834159,-2351.0,0.00022048,2]
[362411466,1748257834175,-165.04,0.00022078,2]
[362411468,1748257834191,-5800.0,0.000221,2]
[362411471,1748257834208,-533.08429402,0.00022176,6]
[362411474,1748257834225,-1000.0,0.00022196,2]
[362411476,1748257834239,-150.0,0.00022326,7]
[362411478,1748257834253,-2780.80250551,0.00022508,2]
[362411481,1748257834270,-1000.0,0.0002256,2]
[362411483,1748257834287,-765.94,0.00022767,2]
[362411486,1748257834305,-400.0,0.0002297,2]
[362411489,1748257834322,-544.60019437,0.0002297,2]
[362411492,1748257834340,-450.0,0.00023,2]
[362411494,1748257834355,-604.7,0.00023,2]
[362411497,1748257834374,-2219.14506051,0.00023054,2]
[362411499,1748257834391,-533.08429402,0.00023314,9]
[362411502,1748257834408,-1000.0,0.00023347,2]
[362411505,1748257834426,-805.88,0.00023523,2]
[362411507,1748257834439,-166.06,0.00023697,2]
[362411509,1748257834454,-513.0,0.00023816,2]
[362411512,1748257834473,-1254.31,0.00023836,2]
[362411514,1748257834485,-250.0,0.0002387,2]
[362411516,1748257834500,-400.0,0.0002397,2]
[362411519,1748257834519,-1000.0,0.00024134,2]
[362411522,1748257834533,-3292.0,0.00024166,2]
[362411524,1748257834546,-1000.0,0.00024415,2]
[362411526,1748257834563,-533.08429402,0.00024452,11]
[362411529,1748257834578,-1000.0,0.00024658,2]
[362411531,1748257834593,-500.0,0.00025,2]
[362411534,1748257834607,-464.33507353,0.00025,30]
[362411536,1748257834623,-8774.08697851,0.00025443,2]
[362411538,1748257834637,-533.08429402,0.0002559,13]
[362411541,1748257834653,-805.88,0.00025787,2]
[362411543,1748257834669,-2219.14506051,0.00026359,2]
[362411545,1748257834686,-1852.02,0.00026371,2]
[362411547,1748257834700,-4609.0,0.00026487,2]
[362411549,1748257834716,-1000.0,0.00026635,2]
[362411551,1748257834731,-166.06,0.00026659,2]
[362411553,1748257834746,-218.99,0.00026676,2]
[362411555,1748257834759,-533.08429402,0.00026728,15]
[362411557,1748257834773,-185.91,0.000269,31]
[362411559,1748257834788,-300.0,0.0002697,2]
[362411562,1748257834803,-400.0,0.0002697,2]
[362411564,1748257834819,-550.0,0.00027,2]
[362411567,1748257834834,-3562.88,0.00027123,2]
[362411569,1748257834850,-765.94,0.00027321,120]
[362411571,1748257834865,-500.0,0.00027368,2]
[362411574,1748257834880,-212.45507551,0.00027368,2]
[362411576,1748257834895,-500.0,0.00027368,2]
[362411578,1748257834910,-500.0,0.00027368,2]
[362411581,1748257834927,-238.65364306,0.00027368,2]
[362411583,1748257834942,-500.0,0.00027368,2]
[362411585,1748257834957,-153.90259295,0.00027368,2]
[362411588,1748257834972,-161.88385859,0.00027368,2]
[362411590,1748257834986,-150.0,0.00027368,2]
[362411592,1748257835001,-245.47010578,0.00027368,2]
[362411595,1748257835015,-500.0,0.00027368,2]
[362411597,1748257835029,-500.0,0.00027395,2]
[362411599,1748257835044,-500.0,0.00027395,2]
[362411602,1748257835059,-500.0,0.00027395,2]
[362411604,1748257835073,-500.0,0.00027395,2]
[362411606,1748257835089,-150.0,0.00027395,2]
[362411609,1748257835103,-500.0,0.00027395,2]
[362411611,1748257835118,-150.0,0.00027397,2]
[362411613,1748257835133,-501.33,0.00027397,2]
[362411614,1748257835148,-150.0,0.00027397,2]
[362411615,1748257835163,-300.0,0.00027397,2]
[362411616,1748257835177,-9999.99,0.00027397,2]
[362411617,1748257835191,-150.99,0.00027397,2]
[362411618,1748257835207,-9999.99,0.00027397,2]
[362411619,1748257835222,-822.72,0.00027397,2]
[362411620,1748257835236,-90.94934823,0.00027397,2]
[362411622,1748257835870,-712.80182721,0.00027397,2]
[362411623,1748257835883,-196.23882456,0.00027397,2]
[362411624,1748257835893,-2856.83,0.00027397,2]
[362411625,1748257835904,-150.99,0.00027397,2]
[362411626,1748257835913,-64.82600699,0.00027397,2]
[362411627,1748257835945,-663.86994497,0.00027397,2]
[362411628,1748257835958,-1522.03404804,0.00027397,2]
[362411629,1748257835968,-334.76,0.00027397,2]
[362411630,1748257835979,-1434.55,0.00027397,5]
[362411631,1748257835988,-30734.87,0.00027397,10]
[362411632,1748257835998,-500.0,0.00027423,2]
[362411633,1748257836008,-500.0,0.00027423,2]
[362411634,1748257836018,-500.0,0.00027423,2]
[362411635,1748257836028,-500.0,0.00027423,2]
[362411636,1748257836038,-175.56018596,0.00027423,2]
[362411637,1748257836048,-500.0,0.00027423,2]
[362411638,1748257836058,-275.09730309,0.00027424,2]
[362411639,1748257836068,-500.0,0.0002745,2]
[362411640,1748257836078,-500.0,0.0002745,2]
[362411641,1748257836089,-418.12846291,0.0002745,2]
[362411643,1748257838118,-154.601241,0.00019178,2]
[362411644,1748257838128,-154.601241,0.00019899,2]
[362411645,1748257838137,-647.24902,0.00019989,2]
[362411646,1748257838146,-483.35323402,0.00019992,2]
[362411647,1748257838158,-163.89578598,0.00019992,2]
[362411648,1748257838167,-352.51774071,0.00019992,2]
[362411649,1748257838179,-294.73127929,0.00019992,2]
[362411650,1748257838189,-156.42376832,0.00019993,2]
[362411651,1748257838201,-490.82525168,0.00019993,2]
[362411652,1748257838215,-154.601241,0.00019993,2]
[362411653,1748257838225,-647.24902,0.00019994,2]
[362411654,1748257838235,-647.24902,0.00019994,2]
[362411655,1748257838244,-647.24902,0.00019997,2]
[362411656,1748257838254,-141.16869039,0.00019998,2]
[362411657,1748257838266,-506.08032961,0.00019998,2]
[362411658,1748257838275,-406.67914834,0.00019999,2]
[362411659,1748257838285,-240.56987166,0.00019999,2]
[362411660,1748257838294,-53.66492134,0.00019999,2]
[362411661,1748257838304,-593.58409866,0.00019999,2]
[362411662,1748257838312,-6.15254271,0.00019999,2]
[362411663,1748257838323,-148.44869829,0.00019999,2]
[362411664,1748257838332,-647.24902,0.00019999,2]
[362411665,1748257838342,-647.24902,0.00019999,2]
[362411666,1748257838352,-647.24902,0.00019999,2]
[362411667,1748257838365,-647.24902,0.00019999,2]
[362411668,1748257838375,-647.24902,0.00019999,2]
[362411669,1748257838384,-647.24902,0.00019999,2]
[362411671,1748257838395,-300.0,0.00027396,2]
[362411673,1748257838405,-81.87153709,0.0002745,2]
[362411675,1748257838415,-500.0,0.0002745,2]
[362411676,1748257838426,-500.0,0.0002745,2]
[362411677,1748257838436,-309.41364732,0.00027478,2]
[362411679,1748257838446,-257.87907511,0.00027478,2]
[362411681,1748257838456,-500.0,0.00027478,2]
[362411683,1748257838465,-629.8998764,0.00027478,2]
[362411685,1748257838475,-500.0,0.00027478,2]
[362411687,1748257838486,-500.0,0.00027505,2]
[362411689,1748257838495,-500.0,0.00027505,2]
[362411690,1748257838505,-14.1318599,0.00027527,2]
[362411693,1748257838517,-164.34017635,0.00027527,2]
[362411694,1748257838527,-500.0,0.00027532,2]
[362411696,1748257838536,-500.0,0.00027532,2]
[362411699,1748257838546,-345.73255852,0.0002756,2]
[362411702,1748257838556,-500.0,0.0002756,2]
[362411703,1748257838565,-500.0,0.0002756,2]
[362411705,1748257838575,-232.98967028,0.00027587,2]
[362411708,1748257838584,-500.0,0.00027686,2]
[362411712,1748257838595,-500.0,0.00027698,2]
[362411716,1748257838604,-533.08429402,0.00027866,17]
[362411718,1748257838614,-500.0,0.00027902,2]
[362411720,1748257838623,-277.6,0.00028,2]
[362411722,1748257838633,-805.88,0.00028051,2]
[362411723,1748257838642,-150.0,0.00028118,2]
[362411724,1748257838652,-500.0,0.00028216,2]
[362411725,1748257838661,-500.0,0.0002841,2]
[362411726,1748257838671,-800.0,0.00028463,2]
[362411727,1748257838686,-587.0,0.00028463,2]
[362411728,1748257838698,-1137.63987947,0.00028463,2]
[362411729,1748257838709,-126.36012053,0.00028463,2]
[362411730,1748257838719,-225.3150162,0.00028463,2]
[362411731,1748257838731,-1237.6849838,0.00028463,2]
[362411732,1748257838740,-923.0,0.00028463,2]
[362411733,1748257838749,-555.0,0.00028463,2]
[362411734,1748257838760,-500.0,0.00028581,2]
[362411735,1748257838771,-500.0,0.00028817,2]
[362411736,1748257838783,-150.0,0.00028839,2]
[362411737,1748257838792,-517.62357517,0.00028878,2]
[362411738,1748257838805,-1720.32690124,0.00028878,2]
[362411739,1748257838825,-896.28342136,0.00028878,2]
[362411740,1748257838836,-5639.85308074,0.00028878,2]
[362411741,1748257838847,-885.255,0.00028883,2]
[362411742,1748257838856,-863.0,0.00028883,2]
[362411743,1748257838865,-166.776,0.00028883,2]
[362411744,1748257838875,-800.0,0.000289,10]
[362411745,1748257838884,-213.331,0.00028901,2]
[362411746,1748257838894,-238.851,0.00028901,2]
[362411747,1748257838905,-183.322,0.00028901,2]
[362411748,1748257838915,-154.0,0.00029,2]
[362411749,1748257838924,-600.0,0.00029,2]
[362411750,1748257838933,-533.08429402,0.00029003,20]
[362411751,1748257838942,-6920.0,0.00029015,2]
[362411752,1748257838952,-4129.32,0.00029015,2]
[362411753,1748257838961,-6337.0,0.00029031,2]
[362411754,1748257838971,-203.684,0.00029093,2]
[362411755,1748257838985,-262.406,0.00029093,2]
[362411756,1748257838996,-150.487,0.00029093,2]
[362411757,1748257839007,-938.0,0.00029093,2]
[362411758,1748257839017,-1328.0,0.00029093,2]
[362411759,1748257839026,-633.0,0.00029093,2]
[362411760,1748257839036,-600.0,0.00029109,2]
[362411761,1748257839046,-600.0,0.00029248,2]
[362411762,1748257839055,-600.0,0.00029284,2]
[362411763,1748257839069,-600.0,0.00029528,2]
[362411764,1748257839079,-150.0,0.0002956,2]
[362411765,1748257839092,-2219.14506051,0.00029663,2]
[362411766,1748257839109,-500.0,0.00029697,2]
[362411767,1748257839286,-500.0,0.00029918,2]
[362411768,1748257839301,-500.0,0.00029978,2]
[362411769,1748257839311,-430.6272649,0.0003,2]
[362411770,1748257839320,-150.0,0.0003,2]
[362411771,1748257839329,-214.0,0.0003,2]
[362411772,1748257839338,-500.0,0.00030015,7]
[362411773,1748257839348,-600.0,0.00030137,2]
[362411774,1748257839357,-533.08429402,0.00030141,22]
[362411775,1748257839367,-150.0,0.00030281,2]
[362411776,1748257839376,-805.88,0.00030315,2]
[362411777,1748257839385,-500.0,0.00030465,7]
[362411778,1748257839394,-500.0,0.00030713,7]
[362411779,1748257839405,-500.0,0.00030932,7]
[362411780,1748257839414,-650.0,0.00031,2]
[362411781,1748257839424,-1814.1,0.00031,7]
[362411782,1748257839434,-300.0,0.00031,2]
[362411783,1748257839444,-150.0,0.00031002,2]
[362411784,1748257839453,-600.0,0.00031182,7]
[362411785,1748257839465,-533.08429402,0.00031279,24]
[362411786,1748257839474,-600.0,0.0003141,7]
[362411787,1748257839485,-800.0,0.00031463,2]
[362411788,1748257839497,-587.0,0.00031463,2]
[362411789,1748257839508,-376.781,0.00031463,2]
[362411790,1748257839524,-1463.0,0.00031463,2]
[362411791,1748257839534,-923.0,0.00031463,2]
[362411792,1748257839545,-555.0,0.00031463,2]
[362411793,1748257839554,-600.0,0.00031485,7]
[362411794,1748257839564,-600.0,0.00031585,7]
[362411795,1748257839574,-600.0,0.00031679,7]
[362411796,1748257839583,-150.0,0.00031723,2]
[362411797,1748257839592,-500.0,0.00031737,7]
[362411798,1748257839602,-600.0,0.00031745,7]
[362411799,1748257839612,-881.0,0.00031883,2]
[362411800,1748257839621,-845.0,0.00031883,2]
[362411801,1748257839631,-154.0,0.00031883,2]
[362411802,1748257839640,-500.0,0.0003192,7]
[362411803,1748257839649,-500.0,0.00031975,7]
[362411804,1748257839658,-4162.385,0.00032015,2]
[362411805,1748257839668,-4059.0,0.00032015,2]
[362411806,1748257839679,-500.0,0.00032016,7]
[362411807,1748257839689,-809.366,0.00032093,2]
[362411808,1748257839698,-1312.0,0.00032093,2]
[362411809,1748257839707,-633.0,0.00032093,2]
[362411810,1748257839720,-600.0,0.00032181,7]
[362411811,1748257839729,-8774.08697851,0.00032313,2]
[362411812,1748257839738,-533.08429402,0.00032417,26]
[362411813,1748257839747,-150.0,0.00032444,2]
[362411814,1748257839758,-500.0,0.00032535,7]
[362411815,1748257839767,-805.88,0.00032579,2]
[362411816,1748257839776,-500.0,0.00032694,7]
[362411817,1748257839785,-500.0,0.0003275,7]